[Event "Live Chess"]
[Site "Chess.com"]
[Date "2023.05.21"]
[Round "-"]
[White "maxwalden"]
[Black "matt1979"]
[Result "0-1"]
[WhiteElo "1211"]
[BlackElo "1540"]
[TimeControl "300"]
[EndTime "1:02:10 PDT"]
[Termination "matt1979 won by resignation"]

1. d4 {[%clk 0:04:55.1]} 1... e6 {[%clk 0:04:57.1]} 2. c4 {[%clk 0:04:54.2]}
2... f5 {[%clk 0:04:55.7]} 3. Nc3 {[%clk 0:04:53.3]} 3... Bb4 {[%clk 0:04:53.7]}
4. Bf4 {[%clk 0:04:51.4]} 4... Nf6 {[%clk 0:04:52.2]} 5. a3 {[%clk 0:04:48.7]}
5... Bxc3+ {[%clk 0:04:50.8]} 6. bxc3 {[%clk 0:04:48.6]} 6... Ne4 {[%clk
0:04:49.3]} 7. Qc2 {[%clk 0:04:44]} 7... O-O {[%clk 0:04:47.6]} 8. Nf3 {[%clk
0:04:40.2]} 8... d6 {[%clk 0:04:40]} 9. e3 {[%clk 0:04:37.5]} 9... b6 {[%clk
0:04:35.7]} 10. Bd3 {[%clk 0:04:35.8]} 10... Bb7 {[%clk 0:04:34.5]} 11. Nd2
{[%clk 0:04:27.2]} 11... Nxd2 {[%clk 0:04:30.9]} 12. Qxd2 {[%clk 0:04:23.3]}
12... Nd7 {[%clk 0:04:20.1]} 13. O-O {[%clk 0:04:19]} 13... Nf6 {[%clk
0:04:15.3]} 14. d5 {[%clk 0:04:13.7]} 14... e5 {[%clk 0:04:03]} 15. Bg5 {[%clk
0:04:10.9]} 15... e4 {[%clk 0:03:55.8]} 16. Be2 {[%clk 0:04:05.9]} 16... Qe8
{[%clk 0:03:50.6]} 17. Bxf6 {[%clk 0:04:03.8]} 17... Rxf6 {[%clk 0:03:49]} 18.
Qd4 {[%clk 0:03:56.2]} 18... Rh6 {[%clk 0:03:35.4]} 19. Rab1 {[%clk 0:03:43.2]}
19... Qe7 {[%clk 0:03:31.6]} 20. h3 {[%clk 0:03:40.7]} 20... Qg5 {[%clk
0:03:16.2]} 21. a4 {[%clk 0:03:21.3]} 21... Rxh3 {[%clk 0:03:11]} 22. f4 {[%clk
0:03:11.8]} 22... Qg3 {[%clk 0:03:05.4]} 23. Qd1 {[%clk 0:02:35.5]} 23... Rh2
{[%clk 0:03:00.8]} 24. Rf2 {[%clk 0:02:29.3]} 24... Qh4 {[%clk 0:02:54.6]} 0-1

[Event "Live Chess"]
[Site "Chess.com"]
[Date "2023.05.21"]
[Round "-"]
[White "hturner40"]
[Black "Biranidun"]
[Result "0-1"]
[WhiteElo "1788"]
[BlackElo "2534"]
[TimeControl "300"]
[EndTime "1:02:21 PDT"]
[Termination "Biranidun won by resignation"]

1. Nf3 {[%clk 0:04:58.1]} 1... Nf6 {[%clk 0:04:58.3]} 2. g3 {[%clk 0:04:57.2]}
2... g6 {[%clk 0:04:58]} 3. Bg2 {[%clk 0:04:56.6]} 3... Bg7 {[%clk 0:04:57.9]}
4. O-O {[%clk 0:04:55.4]} 4... O-O {[%clk 0:04:57.8]} 5. d3 {[%clk 0:04:52.9]}
5... d6 {[%clk 0:04:57.7]} 6. e4 {[%clk 0:04:51.7]} 6... c5 {[%clk 0:04:57]} 7.
Nbd2 {[%clk 0:04:49.2]} 7... Nc6 {[%clk 0:04:56.6]} 8. c3 {[%clk 0:04:48.3]}
8... Bg4 {[%clk 0:04:55.5]} 9. h3 {[%clk 0:04:44.5]} 9... Bxf3 {[%clk 0:04:55]}
10. Nxf3 {[%clk 0:04:42.5]} 10... Rc8 {[%clk 0:04:52.5]} 11. Nh4 {[%clk
0:04:40.8]} 11... b5 {[%clk 0:04:48.7]} 12. a3 {[%clk 0:04:32]} 12... Nd7 {[%clk
0:04:47.7]} 13. f4 {[%clk 0:04:26.7]} 13... a5 {[%clk 0:04:46.5]} 14. f5 {[%clk
0:04:22.2]} 14... b4 {[%clk 0:04:45.5]} 15. axb4 {[%clk 0:04:20.1]} 15... axb4
{[%clk 0:04:45.4]} 16. Bd2 {[%clk 0:04:18.3]} 16... Nde5 {[%clk 0:04:44.4]} 17.
Qe2 {[%clk 0:04:15.1]} 17... Qb6 {[%clk 0:04:43.1]} 18. Kh1 {[%clk 0:04:12.1]}
18... Bf6 {[%clk 0:04:37.1]} 19. Nf3 {[%clk 0:03:56.1]} 19... Nxf3 {[%clk
0:04:36.1]} 20. Rxf3 {[%clk 0:03:42.9]} 20... bxc3 {[%clk 0:04:33.8]} 21. Bxc3
{[%clk 0:03:36.8]} 21... Nd4 {[%clk 0:04:32.5]} 22. Bxd4 {[%clk 0:03:32.8]}
22... Bxd4 {[%clk 0:04:31.5]} 23. Rb1 {[%clk 0:03:12]} 23... Ra8 {[%clk
0:04:27.5]} 24. fxg6 {[%clk 0:03:09.1]} 24... hxg6 {[%clk 0:04:26.5]} 25. h4
{[%clk 0:03:03.6]} 25... Kg7 {[%clk 0:04:24.8]} 26. g4 {[%clk 0:03:00.7]} 26...
Rh8 {[%clk 0:04:22.8]} 27. h5 {[%clk 0:02:45.9]} 27... gxh5 {[%clk 0:04:21]} 28.
g5 {[%clk 0:02:45]} 28... Ra2 {[%clk 0:04:15]} 29. Qf1 {[%clk 0:02:42.3]} 29...
Rf8 {[%clk 0:04:13.4]} 30. Rh3 {[%clk 0:02:13.5]} 30... Rxb2 {[%clk 0:04:12.2]}
31. Rxb2 {[%clk 0:02:10.8]} 31... Qxb2 {[%clk 0:04:12.1]} 32. Rxh5 {[%clk
0:02:08.7]} 32... e6 {[%clk 0:04:02.4]} 33. Bf3 {[%clk 0:01:50.9]} 33... Ra8
{[%clk 0:03:56.4]} 34. Bd1 {[%clk 0:01:19.5]} 34... Qf2 {[%clk 0:03:54.3]} 35.
Qxf2 {[%clk 0:01:09.3]} 35... Bxf2 {[%clk 0:03:54.2]} 36. Kg2 {[%clk 0:01:06.8]}
36... Bd4 {[%clk 0:03:50.7]} 37. Kf3 {[%clk 0:00:55.9]} 37... Ra2 {[%clk
0:03:47.8]} 38. Be2 {[%clk 0:00:54.8]} 38... Kg6 {[%clk 0:03:43.2]} 39. Rh8
{[%clk 0:00:24]} 39... Bxh8 {[%clk 0:03:41.5]} 0-1

[Event "Live Chess"]
[Site "Chess.com"]
[Date "2023.05.21"]
[Round "-"]
[White "tpm07"]
[Black "EdenHazard8"]
[Result "1-0"]
[WhiteElo "1937"]
[BlackElo "1952"]
[TimeControl "300"]
[EndTime "1:02:58 PDT"]
[Termination "tpm07 won by resignation"]

1. e4 {[%clk 0:04:56.8]} 1... e5 {[%clk 0:04:58.1]} 2. Nf3 {[%clk 0:04:56.1]}
2... Nc6 {[%clk 0:04:58]} 3. Bb5 {[%clk 0:04:55.2]} 3... Nf6 {[%clk 0:04:57.6]}
4. d3 {[%clk 0:04:52.5]} 4... d6 {[%clk 0:04:51.5]} 5. Nbd2 {[%clk 0:04:48.9]}
5... Be7 {[%clk 0:04:49.2]} 6. h3 {[%clk 0:04:47.7]} 6... h6 {[%clk 0:04:46.2]}
7. Nf1 {[%clk 0:04:38.5]} 7... Be6 {[%clk 0:04:39.6]} 8. Ng3 {[%clk 0:04:36.5]}
8... Qd7 {[%clk 0:04:33.8]} 9. c3 {[%clk 0:04:30.2]} 9... O-O-O {[%clk
0:04:31.2]} 10. Qa4 {[%clk 0:04:27.8]} 10... Kb8 {[%clk 0:04:29.4]} 11. Be3
{[%clk 0:04:24.3]} 11... a6 {[%clk 0:04:27.6]} 12. Bxc6 {[%clk 0:04:19.4]} 12...
Qxc6 {[%clk 0:04:27.5]} 13. Qxc6 {[%clk 0:04:15]} 13... bxc6 {[%clk 0:04:27.4]}
14. Ke2 {[%clk 0:03:50.2]} 14... Kc8 {[%clk 0:04:21.5]} 15. b4 {[%clk
0:03:47.2]} 15... Kd7 {[%clk 0:04:19.2]} 16. a4 {[%clk 0:03:46.7]} 16... Ra8
{[%clk 0:04:17.7]} 17. c4 {[%clk 0:03:40.8]} 17... Rhb8 {[%clk 0:04:14.3]} 18.
Bd2 {[%clk 0:03:34.8]} 18... a5 {[%clk 0:04:07.2]} 19. b5 {[%clk 0:03:31.1]}
19... cxb5 {[%clk 0:04:05.5]} 20. axb5 {[%clk 0:03:17.8]} 20... a4 {[%clk
0:04:05.4]} 21. Ra2 {[%clk 0:03:09.7]} 21... c6 {[%clk 0:03:58.3]} 22. bxc6+
{[%clk 0:03:03.6]} 22... Kxc6 {[%clk 0:03:58.2]} 23. Rha1 {[%clk 0:03:01.9]}
23... Nd7 {[%clk 0:03:49.3]} 24. Rxa4 {[%clk 0:02:56.5]} 24... Rxa4 {[%clk
0:03:49.2]} 25. Rxa4 {[%clk 0:02:55.8]} 25... Nc5 {[%clk 0:03:49.1]} 26. Ra7
{[%clk 0:02:32.8]} 26... Bd8 {[%clk 0:03:45.8]} 27. Ra2 {[%clk 0:02:31.3]} 27...
Rb3 {[%clk 0:03:41.4]} 28. Ne1 {[%clk 0:02:14.2]} 28... Nxd3 {[%clk 0:03:39.1]}
29. Nxd3 {[%clk 0:02:04.5]} 29... Bxc4 {[%clk 0:03:37.4]} 30. Rc2 {[%clk
0:01:57.7]} 30... Kb5 {[%clk 0:03:36]} 31. Rxc4 {[%clk 0:01:50.8]} 31... Kxc4
{[%clk 0:03:35.9]} 32. Nc1 {[%clk 0:01:43.2]} 32... Rb2 {[%clk 0:03:34.5]} 33.
Kd1 {[%clk 0:01:31]} 33... Bb6 {[%clk 0:03:31.5]} 34. f3 {[%clk 0:01:29.4]}
34... g6 {[%clk 0:03:26.4]} 35. Nf1 {[%clk 0:01:23.7]} 35... Bc5 {[%clk
0:03:18.3]} 36. Be3 {[%clk 0:01:22.2]} 36... Rxg2 {[%clk 0:03:16.1]} 37. Bxc5
{[%clk 0:01:20.5]} 37... dxc5 {[%clk 0:03:12.9]} 38. Ne3+ {[%clk 0:01:19.4]} 1-0

[Event "Live Chess"]
[Site "Chess.com"]
[Date "2023.05.21"]
[Round "-"]
[White "Singapourfeuj"]
[Black "swingrumbacha"]
[Result "0-1"]
[WhiteElo "2183"]
[BlackElo "2509"]
[TimeControl "300"]
[EndTime "1:03:05 PDT"]
[Termination "swingrumbacha won by checkmate"]

1. d4 {[%clk 0:04:59]} 1... Nf6 {[%clk 0:04:55.5]} 2. Nf3 {[%clk 0:04:56.5]}
2... c5 {[%clk 0:04:52.3]} 3. d5 {[%clk 0:04:55.3]} 3... b5 {[%clk 0:04:49.6]}
4. a4 {[%clk 0:04:53.9]} 4... Bb7 {[%clk 0:04:45.4]} 5. axb5 {[%clk 0:04:49.9]}
5... Bxd5 {[%clk 0:04:42.2]} 6. Nc3 {[%clk 0:04:49.2]} 6... Bb7 {[%clk
0:04:37.6]} 7. e3 {[%clk 0:04:46.6]} 7... Qc7 {[%clk 0:04:33]} 8. Be2 {[%clk
0:04:44.4]} 8... e6 {[%clk 0:04:28.6]} 9. h3 {[%clk 0:04:43.4]} 9... a6 {[%clk
0:04:24.5]} 10. bxa6 {[%clk 0:04:41.8]} 10... Be7 {[%clk 0:04:18.4]} 11. Bd2
{[%clk 0:04:27.8]} 11... Bxa6 {[%clk 0:04:13.6]} 12. Bxa6 {[%clk 0:04:23.7]}
12... Nxa6 {[%clk 0:04:09.3]} 13. O-O {[%clk 0:04:22.7]} 13... O-O {[%clk
0:04:04.7]} 14. e4 {[%clk 0:04:21.1]} 14... d6 {[%clk 0:04:00.9]} 15. Qe2 {[%clk
0:04:20]} 15... Qb6 {[%clk 0:03:56.6]} 16. b3 {[%clk 0:04:17.8]} 16... Nb4
{[%clk 0:03:52.6]} 17. Bg5 {[%clk 0:04:11.6]} 17... Rxa1 {[%clk 0:03:46.5]} 18.
Rxa1 {[%clk 0:04:10.1]} 18... Rb8 {[%clk 0:03:41.6]} 19. e5 {[%clk 0:04:08.2]}
19... dxe5 {[%clk 0:03:37.6]} 20. Nxe5 {[%clk 0:04:07.2]} 20... Re8 {[%clk
0:03:32.7]} 21. Nc4 {[%clk 0:04:05]} 21... Qb8 {[%clk 0:03:28.6]} 22. Rd1 {[%clk
0:04:01.3]} 22... Nfd5 {[%clk 0:03:23.8]} 23. Nxd5 {[%clk 0:03:57.2]} 23... exd5
{[%clk 0:03:20.6]} 24. Bxe7 {[%clk 0:03:54.9]} 24... dxc4 {[%clk 0:03:17]} 25.
Rd7 {[%clk 0:03:49.3]} 25... Qc8 {[%clk 0:03:12.2]} 26. Qg4 {[%clk 0:03:35.7]}
26... h5 {[%clk 0:03:07.4]} 27. Qf5 {[%clk 0:03:32.7]} 27... g6 {[%clk
0:03:03.7]} 28. Qf6 {[%clk 0:03:21.5]} 28... Qxd7 {[%clk 0:02:58.9]} 29. Bxc5
{[%clk 0:03:20.5]} 29... Nd5 {[%clk 0:02:54.9]} 30. Qd4 {[%clk 0:03:19.2]} 30...
Qc7 {[%clk 0:02:49.5]} 31. g3 {[%clk 0:03:15.2]} 31... Re1+ {[%clk 0:02:41.8]}
32. Kh2 {[%clk 0:03:14.2]} 32... Qc6 {[%clk 0:02:37.8]} 33. bxc4 {[%clk
0:03:11.6]} 33... Ne3 {[%clk 0:02:32.7]} 34. g4 {[%clk 0:02:50.9]} 34... Qg2#
{[%clk 0:02:28]} 0-1

[Event "Live Chess"]
[Site "Chess.com"]
[Date "2023.05.21"]
[Round "-"]
[White "Leonid_Starozhilov"]
[Black "Rusty_Bridges"]
[Result "1-0"]
[WhiteElo "2657"]
[BlackElo "1529"]
[TimeControl "300"]
[EndTime "1:03:05 PDT"]
[Termination "Leonid_Starozhilov won by resignation"]

1. e4 {[%clk 0:04:58.7]} 1... d6 {[%clk 0:04:57.9]} 2. d4 {[%clk 0:04:57.7]}
2... Nf6 {[%clk 0:04:55.9]} 3. Nc3 {[%clk 0:04:57.6]} 3... Nbd7 {[%clk
0:04:52.3]} 4. Nf3 {[%clk 0:04:56.3]} 4... e5 {[%clk 0:04:51]} 5. Bc4 {[%clk
0:04:54.1]} 5... h6 {[%clk 0:04:49]} 6. g4 {[%clk 0:04:48.4]} 6... Nxg4 {[%clk
0:04:40.5]} 7. Rg1 {[%clk 0:04:45.5]} 7... Ngf6 {[%clk 0:04:38.7]} 8. Be3 {[%clk
0:04:43.5]} 8... a6 {[%clk 0:04:25.8]} 9. a4 {[%clk 0:04:35]} 9... Nb6 {[%clk
0:04:21]} 10. Bb3 {[%clk 0:04:29.5]} 10... Bg4 {[%clk 0:04:17.7]} 11. dxe5
{[%clk 0:04:21.9]} 11... Bxf3 {[%clk 0:04:15]} 12. Qxf3 {[%clk 0:04:17.9]} 12...
dxe5 {[%clk 0:04:13]} 13. Rd1 {[%clk 0:04:15.9]} 13... Qc8 {[%clk 0:03:56]} 14.
Kf1 {[%clk 0:03:47.5]} 14... Be7 {[%clk 0:03:27.3]} 15. Rxg7 {[%clk 0:03:44.1]}
15... Rf8 {[%clk 0:03:14.6]} 16. Bxh6 {[%clk 0:03:42.2]} 1-0

[Event "Live Chess"]
[Site "Chess.com"]
[Date "2023.05.21"]
[Round "-"]
[White "Tushinskiy"]
[Black "Ocelot32"]
[Result "1-0"]
[WhiteElo "2188"]
[BlackElo "1385"]
[TimeControl "300"]
[EndTime "1:03:12 PDT"]
[Termination "Tushinskiy won by resignation"]

1. d4 {[%clk 0:04:57.1]} 1... d5 {[%clk 0:04:58.9]} 2. c3 {[%clk 0:04:57]} 2...
Nf6 {[%clk 0:04:56.6]} 3. Nf3 {[%clk 0:04:56.9]} 3... Bg4 {[%clk 0:04:53.2]} 4.
Bf4 {[%clk 0:04:56.8]} 4... c6 {[%clk 0:04:50.7]} 5. Bg3 {[%clk 0:04:56.7]} 5...
Nbd7 {[%clk 0:04:47.9]} 6. Nbd2 {[%clk 0:04:55.7]} 6... e6 {[%clk 0:04:43.8]} 7.
Ne5 {[%clk 0:04:54.3]} 7... Be7 {[%clk 0:04:40]} 8. Nxg4 {[%clk 0:04:52.1]} 8...
Nxg4 {[%clk 0:04:38]} 9. e4 {[%clk 0:04:50.7]} 9... Nh6 {[%clk 0:04:25.9]} 10.
Bd3 {[%clk 0:04:48.5]} 10... O-O {[%clk 0:04:23.9]} 11. f4 {[%clk 0:04:45.8]}
11... Bh4 {[%clk 0:04:17.3]} 12. Qf3 {[%clk 0:04:43.4]} 12... Bxg3+ {[%clk
0:04:14.8]} 13. hxg3 {[%clk 0:04:43.3]} 13... dxe4 {[%clk 0:04:12]} 14. Nxe4
{[%clk 0:04:43.2]} 14... Nf6 {[%clk 0:04:10.1]} 15. Ng5 {[%clk 0:04:42.1]} 15...
c5 {[%clk 0:04:07.5]} 16. dxc5 {[%clk 0:04:38.8]} 16... Qc7 {[%clk 0:03:58.1]}
17. O-O-O {[%clk 0:04:32.4]} 17... Qxc5 {[%clk 0:03:55.4]} 18. g4 {[%clk
0:04:31.8]} 18... Nfxg4 {[%clk 0:03:48.8]} 19. Bxh7+ {[%clk 0:04:28.3]} 19...
Kh8 {[%clk 0:03:45.1]} 20. Bc2 {[%clk 0:04:13.5]} 20... Qe3+ {[%clk 0:03:32.6]}
21. Qxe3 {[%clk 0:04:08.4]} 21... Nxe3 {[%clk 0:03:31.6]} 22. Rd2 {[%clk
0:04:04.5]} 22... Nc4 {[%clk 0:03:26.8]} 23. Re2 {[%clk 0:04:00.1]} 23... Kg8
{[%clk 0:03:17.6]} 24. g3 {[%clk 0:03:58.7]} 24... f5 {[%clk 0:03:13.1]} 25.
Nxe6 {[%clk 0:03:55.8]} 25... Rfe8 {[%clk 0:03:11.2]} 26. Rhe1 {[%clk
0:03:53.1]} 26... Nf7 {[%clk 0:03:04.1]} 27. Bb3 {[%clk 0:03:51.7]} 27... Nb6
{[%clk 0:02:59.3]} 28. Ng5 {[%clk 0:03:48.8]} 28... Rxe2 {[%clk 0:02:57.2]} 29.
Rxe2 {[%clk 0:03:48.7]} 29... Rf8 {[%clk 0:02:53.1]} 30. Re7 {[%clk 0:03:47.1]}
30... Nc8 {[%clk 0:02:39.8]} 31. Bxf7+ {[%clk 0:03:45]} 31... Kh8 {[%clk
0:02:30.1]} 32. Rxb7 {[%clk 0:03:42.8]} 32... Nd6 {[%clk 0:02:27.9]} 33. Rxa7
{[%clk 0:03:41.6]} 33... Nxf7 {[%clk 0:02:24.3]} 34. Rxf7 {[%clk 0:03:41.5]}
34... Rxf7 {[%clk 0:02:20.8]} 35. Nxf7+ {[%clk 0:03:40.4]} 35... Kh7 {[%clk
0:02:18.7]} 36. Ne5 {[%clk 0:03:39.8]} 1-0

[Event "Live Chess"]
[Site "Chess.com"]
[Date "2023.05.21"]
[Round "-"]
[White "jagbama"]
[Black "Long1968"]
[Result "1-0"]
[WhiteElo "1166"]
[BlackElo "1005"]
[TimeControl "300"]
[EndTime "1:03:16 PDT"]
[Termination "jagbama won on time"]

1. e4 {[%clk 0:04:57.5]} 1... e6 {[%clk 0:04:57.4]} 2. Nf3 {[%clk 0:04:52.3]}
2... d5 {[%clk 0:04:54.4]} 3. e5 {[%clk 0:04:50.2]} 3... c5 {[%clk 0:04:51.6]}
4. c3 {[%clk 0:04:48.7]} 4... d4 {[%clk 0:04:46.5]} 5. cxd4 {[%clk 0:04:45.1]}
5... cxd4 {[%clk 0:04:43.9]} 6. Qa4+ {[%clk 0:04:42.9]} 6... Nc6 {[%clk
0:04:40.3]} 7. Nxd4 {[%clk 0:04:39.9]} 7... Qxd4 {[%clk 0:04:36]} 8. Qxd4 {[%clk
0:04:33.7]} 8... Nxd4 {[%clk 0:04:32.8]} 9. Nc3 {[%clk 0:04:32.3]} 9... Nc2+
{[%clk 0:04:29]} 10. Kd1 {[%clk 0:04:30.5]} 10... Nxa1 {[%clk 0:04:26.8]} 11. b3
{[%clk 0:04:28.7]} 11... Bd7 {[%clk 0:04:22.7]} 12. Bb2 {[%clk 0:04:27.2]} 12...
Nxb3 {[%clk 0:04:19.6]} 13. axb3 {[%clk 0:04:25.7]} 13... Bb4 {[%clk 0:04:06.9]}
14. Kc2 {[%clk 0:04:24.3]} 14... Rc8 {[%clk 0:04:01.2]} 15. Bd3 {[%clk
0:04:13.2]} 15... Ne7 {[%clk 0:03:56.6]} 16. Ra1 {[%clk 0:04:10.1]} 16... a6
{[%clk 0:03:51]} 17. Be4 {[%clk 0:04:05.7]} 17... Nd5 {[%clk 0:03:44.9]} 18. Kd3
{[%clk 0:03:49.8]} 18... Bc6 {[%clk 0:03:19.3]} 19. Na4 {[%clk 0:03:38.1]} 19...
Nf4+ {[%clk 0:02:53.3]} 20. Ke3 {[%clk 0:03:33.5]} 20... Bxe4 {[%clk 0:02:49.8]}
21. Kxf4 {[%clk 0:03:16.4]} 21... Bc6 {[%clk 0:02:30]} 22. Nb6 {[%clk
0:03:11.5]} 22... Rd8 {[%clk 0:02:26.3]} 23. d4 {[%clk 0:03:06.2]} 23... Bd5
{[%clk 0:02:16.8]} 24. Nc4 {[%clk 0:03:00.3]} 24... Bxc4 {[%clk 0:02:10.2]} 25.
bxc4 {[%clk 0:02:59.1]} 25... O-O {[%clk 0:01:59.7]} 26. c5 {[%clk 0:02:56]}
26... Rd5 {[%clk 0:01:46.8]} 27. Ra4 {[%clk 0:02:53]} 27... a5 {[%clk
0:01:42.4]} 28. Ba3 {[%clk 0:02:45.4]} 28... Bxa3 {[%clk 0:01:38]} 29. Rxa3
{[%clk 0:02:44.1]} 29... Rxd4+ {[%clk 0:01:36]} 30. Ke3 {[%clk 0:02:42]} 30...
Rfd8 {[%clk 0:01:31]} 31. Rxa5 {[%clk 0:02:40.3]} 31... R4d5 {[%clk 0:01:23.1]}
32. f4 {[%clk 0:02:33.5]} 32... b6 {[%clk 0:01:14.5]} 33. Ra6 {[%clk 0:02:08.8]}
33... bxc5 {[%clk 0:01:09.3]} 34. g4 {[%clk 0:02:05.5]} 34... c4 {[%clk
0:00:58.6]} 35. f5 {[%clk 0:02:04.2]} 35... Rxe5+ {[%clk 0:00:40.7]} 36. Kf4
{[%clk 0:02:02.6]} 36... Red5 {[%clk 0:00:36.8]} 37. fxe6 {[%clk 0:01:59.3]}
37... fxe6 {[%clk 0:00:31]} 38. Rxe6 {[%clk 0:01:58]} 38... Rf8+ {[%clk
0:00:27.3]} 39. Ke4 {[%clk 0:01:55.2]} 39... Rfd8 {[%clk 0:00:19.4]} 40. Rc6
{[%clk 0:01:53.5]} 40... Rd4+ {[%clk 0:00:15.4]} 41. Ke3 {[%clk 0:01:52.3]}
41... Kf7 {[%clk 0:00:08.4]} 42. h3 {[%clk 0:01:50]} 42... R8d7 {[%clk
0:00:04.1]} 43. g5 {[%clk 0:01:47.6]} 43... g6 {[%clk 0:00:01.2]} 44. Rf6+
{[%clk 0:01:37.3]} 1-0

[Event "Live Chess"]
[Site "Chess.com"]
[Date "2023.05.21"]
[Round "-"]
[White "seasidecastle27"]
[Black "Mugzwang"]
[Result "1-0"]
[WhiteElo "1876"]
[BlackElo "1533"]
[TimeControl "300"]
[EndTime "1:03:49 PDT"]
[Termination "seasidecastle27 won by resignation"]

1. d4 {[%clk 0:04:58]} 1... d5 {[%clk 0:04:56.9]} 2. Nf3 {[%clk 0:04:57.1]} 2...
Nf6 {[%clk 0:04:55.3]} 3. Bf4 {[%clk 0:04:55.9]} 3... c5 {[%clk 0:04:52.4]} 4.
e3 {[%clk 0:04:54.6]} 4... Nc6 {[%clk 0:04:51.3]} 5. c3 {[%clk 0:04:53]} 5...
Qb6 {[%clk 0:04:50.8]} 6. Qb3 {[%clk 0:04:49]} 6... c4 {[%clk 0:04:45.5]} 7.
Qxb6 {[%clk 0:04:46.7]} 7... axb6 {[%clk 0:04:45]} 8. Nbd2 {[%clk 0:04:38.3]}
8... b5 {[%clk 0:04:40.7]} 9. Ne5 {[%clk 0:04:29]} 9... e6 {[%clk 0:04:22.2]}
10. a3 {[%clk 0:04:24.8]} 10... b4 {[%clk 0:04:11.2]} 11. Nxc6 {[%clk
0:04:19.8]} 11... bxc6 {[%clk 0:04:07.8]} 12. cxb4 {[%clk 0:04:14.6]} 12... Bxb4
{[%clk 0:04:06.1]} 13. O-O-O {[%clk 0:04:11.1]} 13... Bxd2+ {[%clk 0:03:57.7]}
14. Rxd2 {[%clk 0:04:01.4]} 14... Ne4 {[%clk 0:03:57.2]} 15. Rc2 {[%clk
0:03:59.1]} 15... O-O {[%clk 0:03:46.3]} 16. f3 {[%clk 0:03:57.3]} 16... Nf6
{[%clk 0:03:38.9]} 17. Bd6 {[%clk 0:03:51.8]} 17... Re8 {[%clk 0:03:31.7]} 18.
g4 {[%clk 0:03:46.5]} 18... h6 {[%clk 0:03:26.3]} 19. h4 {[%clk 0:03:44]} 19...
Nh7 {[%clk 0:03:06.5]} 20. f4 {[%clk 0:03:31.5]} 20... Rd8 {[%clk 0:03:04.7]}
21. Bc5 {[%clk 0:03:18.7]} 21... Nf6 {[%clk 0:02:59.8]} 22. g5 {[%clk
0:03:10.6]} 22... hxg5 {[%clk 0:02:54.1]} 23. hxg5 {[%clk 0:03:08.8]} 23... Ne4
{[%clk 0:02:53]} 24. Rch2 {[%clk 0:03:04.3]} 1-0

[Event "Live Chess"]
[Site "Chess.com"]
[Date "2023.05.21"]
[Round "-"]
[White "Crowded_House"]
[Black "Salpingidis"]
[Result "0-1"]
[WhiteElo "1670"]
[BlackElo "2221"]
[TimeControl "300"]
[EndTime "1:03:50 PDT"]
[Termination "Salpingidis won by resignation"]

1. d4 {[%clk 0:04:57]} 1... e6 {[%clk 0:04:57.7]} 2. Nf3 {[%clk 0:04:54.2]} 2...
Nf6 {[%clk 0:04:57.2]} 3. Bg5 {[%clk 0:04:53.3]} 3... d5 {[%clk 0:04:56.5]} 4.
e3 {[%clk 0:04:52.9]} 4... Be7 {[%clk 0:04:56]} 5. c3 {[%clk 0:04:52.5]} 5...
O-O {[%clk 0:04:55.5]} 6. Bd3 {[%clk 0:04:51.3]} 6... b6 {[%clk 0:04:54.8]} 7.
Nbd2 {[%clk 0:04:50.4]} 7... Bb7 {[%clk 0:04:54.4]} 8. O-O {[%clk 0:04:49.7]}
8... c5 {[%clk 0:04:54]} 9. Qb1 {[%clk 0:04:47.3]} 9... h6 {[%clk 0:04:51.5]}
10. Bh4 {[%clk 0:04:45.8]} 10... Nc6 {[%clk 0:04:51]} 11. Re1 {[%clk 0:04:40.8]}
11... Nd7 {[%clk 0:04:46.3]} 12. Bxe7 {[%clk 0:04:39]} 12... Qxe7 {[%clk
0:04:46.2]} 13. h3 {[%clk 0:04:35.9]} 13... e5 {[%clk 0:04:45.3]} 14. dxe5
{[%clk 0:04:34.4]} 14... Ndxe5 {[%clk 0:04:45.2]} 15. Nxe5 {[%clk 0:04:33.4]}
15... Nxe5 {[%clk 0:04:45.1]} 16. Be2 {[%clk 0:04:23.4]} 16... Rad8 {[%clk
0:04:37.8]} 17. Nf3 {[%clk 0:04:22.2]} 17... d4 {[%clk 0:04:27.2]} 18. exd4
{[%clk 0:04:16.4]} 18... cxd4 {[%clk 0:04:14.5]} 19. Nxe5 {[%clk 0:03:58.1]}
19... Qxe5 {[%clk 0:04:11.4]} 20. Bf3 {[%clk 0:03:56.6]} 20... Qc7 {[%clk
0:04:06.2]} 21. Bxb7 {[%clk 0:03:55.4]} 21... Qxb7 {[%clk 0:04:06.1]} 22. cxd4
{[%clk 0:03:53.7]} 22... Rxd4 {[%clk 0:04:06]} 23. Rd1 {[%clk 0:03:49]} 23...
Rfd8 {[%clk 0:04:05]} 24. Rxd4 {[%clk 0:03:47]} 24... Rxd4 {[%clk 0:04:04.9]}
25. Qc2 {[%clk 0:03:45.9]} 25... Qd7 {[%clk 0:04:03]} 26. Rc1 {[%clk 0:03:40]}
26... Rd2 {[%clk 0:04:01.8]} 27. Qc8+ {[%clk 0:03:34.8]} 27... Qxc8 {[%clk
0:04:00.6]} 28. Rxc8+ {[%clk 0:03:33.3]} 28... Kh7 {[%clk 0:04:00.5]} 29. Rc7
{[%clk 0:03:26.9]} 29... a5 {[%clk 0:03:57.5]} 30. Rxf7 {[%clk 0:03:16.9]} 30...
Rxb2 {[%clk 0:03:56.5]} 31. Rb7 {[%clk 0:02:58.1]} 31... b5 {[%clk 0:03:55.7]}
32. a3 {[%clk 0:02:54.3]} 32... Rb3 {[%clk 0:03:54.1]} 33. a4 {[%clk 0:02:35.6]}
33... bxa4 {[%clk 0:03:49.4]} 34. Rd7 {[%clk 0:02:28.2]} 34... a3 {[%clk
0:03:45.8]} 35. Rd1 {[%clk 0:02:21.3]} 35... a2 {[%clk 0:03:44.5]} 36. Ra1
{[%clk 0:02:17.5]} 36... Rb1+ {[%clk 0:03:43.7]} 37. Rxb1 {[%clk 0:02:17.2]}
37... axb1=Q+ {[%clk 0:03:42.7]} 0-1

[Event "Live Chess"]
[Site "Chess.com"]
[Date "2023.05.21"]
[Round "-"]
[White "JamesWallman"]
[Black "SupremeTactician"]
[Result "0-1"]
[WhiteElo "755"]
[BlackElo "2284"]
[TimeControl "300"]
[EndTime "1:04:08 PDT"]
[Termination "SupremeTactician won by checkmate"]

1. e4 {[%clk 0:04:57.3]} 1... e5 {[%clk 0:04:58.6]} 2. Nf3 {[%clk 0:04:53.3]}
2... Nc6 {[%clk 0:04:58.2]} 3. Bc4 {[%clk 0:04:51.1]} 3... Bc5 {[%clk
0:04:57.3]} 4. c3 {[%clk 0:04:49.1]} 4... Nf6 {[%clk 0:04:56.5]} 5. d3 {[%clk
0:04:46.7]} 5... O-O {[%clk 0:04:55.5]} 6. b4 {[%clk 0:04:45.2]} 6... Bb6 {[%clk
0:04:54.3]} 7. b5 {[%clk 0:04:43.8]} 7... Na5 {[%clk 0:04:53.4]} 8. Nxe5 {[%clk
0:04:42.2]} 8... d6 {[%clk 0:04:52.8]} 9. Nf3 {[%clk 0:04:25.2]} 9... Nxc4
{[%clk 0:04:49.8]} 10. dxc4 {[%clk 0:04:22.3]} 10... Nxe4 {[%clk 0:04:49.4]} 11.
Qe2 {[%clk 0:04:15.9]} 11... Bg4 {[%clk 0:04:46.5]} 12. Qxe4 {[%clk 0:04:09.2]}
12... Re8 {[%clk 0:04:45.4]} 13. Qxe8+ {[%clk 0:03:47]} 13... Qxe8+ {[%clk
0:04:41.1]} 14. Be3 {[%clk 0:03:43.7]} 14... Bxe3 {[%clk 0:04:39.6]} 15. fxe3
{[%clk 0:03:40.9]} 15... Qxe3+ {[%clk 0:04:39.5]} 16. Kf1 {[%clk 0:03:29.6]}
16... Bxf3 {[%clk 0:04:39.4]} 17. gxf3 {[%clk 0:03:25.5]} 17... Qxf3+ {[%clk
0:04:31.9]} 18. Kg1 {[%clk 0:03:20.2]} 18... Re8 {[%clk 0:04:30.6]} 19. Nd2
{[%clk 0:03:15.6]} 19... Qe3+ {[%clk 0:04:30]} 20. Kf1 {[%clk 0:03:00.5]} 20...
Qe2+ {[%clk 0:04:28.8]} 21. Kg1 {[%clk 0:02:57.2]} 21... Qxd2 {[%clk 0:04:28.7]}
22. Rf1 {[%clk 0:02:49.7]} 22... Re2 {[%clk 0:04:23]} 23. h3 {[%clk 0:02:39.9]}
23... Rg2# {[%clk 0:04:19.9]} 0-1